fUST/lending_fUST_20250917
["ID","MTS","AMOUNT","RATE_DAILY","PERIOD"]
[385899654,1758118234368,-480.0,0.00023285,3]
[385899655,1758118234377,-480.0,0.00023285,3]
[385899656,1758118234386,-548.44167581,0.00023285,3]
[385899657,1758118234396,-480.0,0.00023286,3]
[385899658,1758118234405,-480.0,0.00023286,3]
[385899659,1758118234415,-480.0,0.00023286,3]
[385899660,1758118234424,-480.0,0.00023286,3]
[385899661,1758118234433,-480.0,0.00023286,3]
[385899662,1758118234442,-480.0,0.00023286,3]
[385899663,1758118234452,-1641.24,0.00023286,3]
[385899664,1758118234461,-480.0,0.00023286,3]
[385899665,1758118234471,-480.0,0.00023286,3]
[385899666,1758118234480,-484.56390526,0.00023286,3]
[385899667,1758118234490,-480.0,0.00023286,3]
[385899668,1758118234501,-480.0,0.00023286,3]
[385899669,1758118234512,-480.0,0.00023286,3]
[385899670,1758118234521,-480.0,0.00023286,3]
[385899671,1758118234530,-480.0,0.00023286,3]
[385899672,1758118234539,-4474.17,0.00023287,2]
[385899673,1758118234548,-1837.0,0.00023338,2]
[385899674,1758118234557,-300.0,0.0002335,2]
[385899675,1758118234567,-1671.09,0.00023363,3]
[385899676,1758118234576,-835.55,0.00023363,3]
[385899677,1758118234585,-835.55,0.00023363,3]
[385899678,1758118234595,-10592.81255375,0.00023367,2]
[385899679,1758118234604,-163.55172473,0.00023402,3]
[385899680,1758118234613,-217.90857035,0.00023455,2]
[385899681,1758118234623,-160.0,0.00023456,2]
[385899682,1758118234632,-160.0,0.00023456,2]
[385899683,1758118234641,-160.0,0.00023456,2]
[385899684,1758118234651,-233.34517135,0.00023456,2]
[385899685,1758118234661,-480.0,0.00023459,3]
[385899686,1758118234670,-480.0,0.00023459,3]
[385899687,1758118234679,-480.0,0.00023459,3]
[385899688,1758118234689,-480.0,0.00023459,3]
[385899689,1758118234698,-1648.27470408,0.00023496,2]
[385899690,1758118234708,-168.68506582,0.00023538,3]
[385899691,1758118234725,-311.31493418,0.00023538,3]
[385899692,1758118234735,-160.67494111,0.00023538,3]
[385899693,1758118234746,-433.26733068,0.00023538,3]
[385899749,1758118238519,-460.14063391,0.00023283,3]
[385899751,1758118238528,-480.0,0.00023284,3]
[385899752,1758118238538,-2478.17772821,0.00023538,3]
[385899753,1758118238547,-480.0,0.00023538,3]
[385899754,1758118238556,-480.0,0.00023538,3]
[385899756,1758118238566,-480.0,0.00023538,3]
[385899758,1758118238575,-480.0,0.00023556,3]
[385899760,1758118238584,-480.0,0.00023556,3]
[385899762,1758118238593,-480.0,0.00023556,3]
[385899763,1758118238602,-607.2,0.00023556,3]
[385899764,1758118238612,-480.0,0.00023557,3]
[385899765,1758118238621,-306.78111069,0.00023557,3]
[385899766,1758118238630,-480.0,0.00023557,3]
[385899767,1758118238640,-480.0,0.00023557,3]
[385899768,1758118238649,-480.0,0.00023557,3]
[385899769,1758118238659,-480.0,0.00023557,3]
[385899770,1758118238668,-480.0,0.00023557,3]
[385899771,1758118238677,-480.0,0.00023557,3]
[385899772,1758118238686,-480.0,0.00023557,3]
[385899773,1758118238695,-480.0,0.00023557,3]
[385899774,1758118238705,-480.0,0.00023557,3]
[385899775,1758118238714,-237.87943243,0.00023557,3]
[385899776,1758118238724,-1237.16,0.00023557,3]
[385899777,1758118238733,-480.0,0.00023557,3]
[385899778,1758118238742,-618.68,0.00023557,3]
[385899779,1758118238751,-480.0,0.00023557,3]
[385899780,1758118238760,-480.0,0.00023557,3]
[385899781,1758118238770,-480.0,0.00023557,3]
[385899782,1758118238779,-480.0,0.00023557,3]
[385899783,1758118238788,-480.0,0.00023557,3]
[385899784,1758118238798,-536.46166276,0.00023557,3]
[385899785,1758118238807,-480.0,0.00023557,3]
[385899786,1758118238816,-480.0,0.00023557,3]
[385899787,1758118238826,-511.66,0.00023557,3]
[385899788,1758118238835,-480.0,0.00023557,3]
[385899789,1758118238933,-480.0,0.00023557,3]
[385899790,1758118238942,-482.04,0.00023557,3]
[385899791,1758118238952,-624.93,0.00023557,3]
[385899792,1758118238960,-480.0,0.00023557,3]
[385899793,1758118238969,-480.0,0.00023557,3]
[385899794,1758118238980,-588.7,0.00023557,3]
[385899795,1758118238989,-480.0,0.00023557,3]
[385899796,1758118238998,-480.0,0.00023557,3]
[385899797,1758118239008,-480.0,0.00023557,3]
[385899798,1758118239017,-480.0,0.00023557,3]
[385899799,1758118239026,-480.0,0.00023557,3]
[385899800,1758118239036,-506.95209841,0.00023557,3]
[385899801,1758118239045,-480.0,0.00023557,3]
[385899802,1758118239054,-480.0,0.00023557,3]
[385899803,1758118239063,-480.0,0.00023557,3]
[385899804,1758118239073,-480.0,0.00023557,3]
[385899805,1758118239082,-480.0,0.00023557,3]
[385899806,1758118239095,-480.0,0.00023557,3]
[385899807,1758118239104,-480.0,0.00023557,3]
[385899808,1758118239113,-480.0,0.00023557,3]
[385899809,1758118239123,-480.0,0.00023557,3]
[385899810,1758118239133,-480.0,0.00023557,3]
[385899811,1758118239143,-480.0,0.00023557,3]
[385899812,1758118239153,-480.0,0.00023557,3]
[385899813,1758118239165,-228.12395856,0.00023557,3]
[385899814,1758118239174,-480.0,0.00023557,3]
[385899815,1758118239183,-480.0,0.00023557,3]
[385899816,1758118239193,-480.0,0.00023557,3]
[385899817,1758118239202,-480.0,0.00023557,3]
[385899818,1758118239211,-480.0,0.00023557,3]
[385899819,1758118239220,-480.0,0.00023557,3]
[385899820,1758118239229,-480.0,0.00023557,3]
[385899821,1758118239239,-480.0,0.00023557,3]
[385899822,1758118239248,-480.0,0.00023557,3]
[385899823,1758118239257,-480.0,0.00023557,3]
[385899824,1758118239266,-526.2,0.00023557,3]
[385899825,1758118239275,-480.0,0.00023557,3]
[385899826,1758118239285,-480.0,0.00023557,3]
[385899827,1758118239294,-480.0,0.00023557,3]
[385899828,1758118239303,-480.0,0.00023557,3]
[385899829,1758118239312,-480.0,0.00023557,3]
[385899830,1758118239322,-480.0,0.00023557,3]
[385899831,1758118239333,-480.0,0.00023557,3]
[385899832,1758118239342,-480.0,0.00023557,3]
[385899833,1758118239352,-480.0,0.00023557,3]
[385899834,1758118239361,-528.38,0.00023558,3]
[385899835,1758118239371,-437.14544817,0.00023558,3]
[385899836,1758118239384,-42.85455183,0.00023558,3]
[385899837,1758118239394,-315.48326175,0.00023558,3]
[385899864,1758118240509,-164.51673825,0.00023558,3]
[385899866,1758118240519,-480.0,0.00023558,3]
[385899868,1758118240528,-480.0,0.00023558,3]
[385899870,1758118240537,-480.0,0.00023558,3]
[385899872,1758118240547,-480.0,0.00023558,3]
[385899873,1758118240556,-480.0,0.00023558,3]
[385899875,1758118240565,-480.0,0.00023558,3]
[385899876,1758118240575,-480.0,0.00023558,3]
[385899877,1758118240585,-480.0,0.00023558,3]
[385899878,1758118240594,-500.0,0.00023558,3]
[385899879,1758118240603,-480.0,0.00023558,3]
[385899880,1758118240611,-480.0,0.00023558,3]
[385899881,1758118240621,-480.0,0.00023558,3]
[385899882,1758118240630,-480.0,0.00023558,3]
[385899883,1758118240639,-480.0,0.00023558,3]
[385899885,1758118240648,-480.0,0.00023558,3]
[385899886,1758118240658,-480.0,0.00023558,3]
[385899888,1758118240667,-480.0,0.00023558,3]
[385899889,1758118240676,-480.0,0.00023558,3]
[385899890,1758118240686,-480.0,0.00023558,3]
[385899891,1758118240695,-480.0,0.00023558,3]
[385899892,1758118240704,-480.0,0.00023558,3]
[385899893,1758118240714,-480.0,0.00023558,3]
[385899894,1758118240724,-480.0,0.00023558,3]
[385899895,1758118240733,-661.67,0.00023558,3]
[385899896,1758118240743,-480.0,0.00023558,3]
[385899897,1758118240752,-480.0,0.00023558,3]
[385899898,1758118240761,-489.78955133,0.00023558,3]
[385899899,1758118240771,-480.0,0.00023558,3]
[385899900,1758118240780,-480.0,0.00023558,3]
[385899901,1758118240789,-1123.97,0.00023558,3]
[385899902,1758118240799,-480.0,0.00023558,3]
[385899903,1758118240808,-480.0,0.00023558,3]
[385899904,1758118240818,-480.0,0.00023558,3]
[385899905,1758118240829,-480.0,0.00023558,3]
[385899906,1758118240839,-480.0,0.00023558,3]
[385899907,1758118240849,-480.0,0.00023558,3]
[385899908,1758118240859,-480.0,0.00023558,3]
[385899909,1758118240868,-480.0,0.00023558,3]
[385899910,1758118240878,-480.0,0.00023558,3]
[385899911,1758118240887,-480.0,0.00023558,3]
[385899912,1758118240897,-480.0,0.00023558,3]
[385899913,1758118240907,-500.0,0.00023558,2]
[385899914,1758118240918,-183.59342899,0.00023558,2]
[385899915,1758118240928,-500.0,0.00023558,2]
[385899916,1758118240938,-500.0,0.00023558,2]
[385899917,1758118240952,-500.0,0.00023558,2]
[385899918,1758118240965,-500.0,0.00023558,2]
[385899919,1758118240977,-500.0,0.00023558,2]
[385899920,1758118240990,-500.0,0.00023558,2]
[385899921,1758118241002,-500.0,0.00023558,2]
[385899922,1758118241012,-500.0,0.00023558,2]
[385899923,1758118241023,-500.0,0.00023558,2]
[385899924,1758118241036,-500.0,0.00023558,2]
[385899925,1758118241047,-500.0,0.00023558,2]
[385899926,1758118241059,-315.57517554,0.00023558,2]
[385899927,1758118241071,-500.0,0.00023558,2]
[385899928,1758118241084,-400.0,0.00023558,2]
[385899929,1758118241099,-1207.2534938,0.00023559,2]
[385899930,1758118241111,-601.44,0.00023559,3]
[385899931,1758118241123,-480.0,0.00023559,3]
[385899932,1758118241136,-480.0,0.00023559,3]
[385899933,1758118241148,-480.0,0.00023559,3]
[385899934,1758118241161,-480.0,0.00023559,3]
[385899935,1758118241174,-480.0,0.00023559,3]
[385899936,1758118241185,-368.59390131,0.00023559,3]
[385899937,1758118241197,-539.58267892,0.00023559,3]
[385899938,1758118241209,-480.0,0.00023559,3]
[385899939,1758118241220,-480.0,0.00023559,3]
[385899940,1758118241231,-480.0,0.00023559,3]
[385899941,1758118241242,-480.0,0.00023559,3]
[385899942,1758118241255,-480.0,0.00023559,3]
[385899943,1758118241267,-482.46802352,0.00023559,3]
[385899944,1758118241279,-467.46242403,0.00023559,3]
[385899945,1758118241291,-480.0,0.00023559,3]
[385899946,1758118241301,-376.80897342,0.00023559,3]
[385899947,1758118241312,-480.0,0.00023559,3]
[385899948,1758118241322,-480.0,0.00023559,3]
[385899949,1758118241335,-480.0,0.00023559,3]
[385899950,1758118241346,-480.0,0.00023559,3]
[385899951,1758118241359,-480.0,0.00023559,3]
[385899952,1758118241371,-480.0,0.00023559,3]
[385899953,1758118241382,-480.0,0.00023559,3]
[385899954,1758118241394,-480.0,0.00023559,3]
[385899955,1758118241405,-480.0,0.00023559,3]
[385899956,1758118241417,-485.53099758,0.00023559,3]
[385899957,1758118241430,-480.0,0.00023559,3]
[385899958,1758118241443,-480.0,0.00023559,3]
[385899959,1758118241456,-500.0,0.00023559,3]
[385899960,1758118241469,-480.0,0.00023559,3]
[385899961,1758118241481,-480.0,0.00023559,3]
[385899962,1758118241491,-480.0,0.00023559,3]
[385899963,1758118241502,-480.0,0.00023559,3]
[385899964,1758118241512,-480.0,0.00023559,3]
[385899965,1758118241523,-480.0,0.00023559,3]
[385899966,1758118241535,-480.0,0.00023559,3]
[385899967,1758118241547,-527.6,0.00023559,3]
[385899968,1758118241560,-480.0,0.00023559,3]
[385899969,1758118241574,-480.0,0.00023559,3]
[385899970,1758118241587,-480.0,0.00023559,3]
[385899971,1758118241599,-480.0,0.00023559,3]
[385899972,1758118241610,-480.0,0.0002356,3]
[385899973,1758118241622,-470.45946589,0.0002356,3]
[385899974,1758118241633,-480.0,0.0002356,3]
[385899975,1758118241645,-480.0,0.0002356,3]
[385899976,1758118241657,-480.0,0.0002356,3]
[385899977,1758118241668,-480.0,0.0002356,3]
[385899978,1758118241681,-1641.24,0.0002356,3]
[385899979,1758118241692,-480.0,0.0002356,3]
[385899980,1758118241702,-480.0,0.0002356,3]
[385899981,1758118241713,-480.0,0.0002356,3]
[385899982,1758118241724,-480.0,0.0002356,3]
[385899983,1758118241735,-610.38,0.0002356,3]
[385899984,1758118241746,-480.0,0.0002356,3]
[385899985,1758118241757,-480.0,0.0002356,3]
[385899986,1758118241767,-500.0,0.00023573,2]
[385899987,1758118241779,-163.77060527,0.00023573,2]
[385899988,1758118241790,-500.0,0.00023573,2]
[385899989,1758118241800,-160.0,0.00023725,2]
[385899990,1758118241811,-480.0,0.00023733,3]
[385899991,1758118241825,-480.0,0.00023733,3]
[385899992,1758118241836,-480.0,0.00023733,3]
[385899993,1758118241847,-151.0,0.000238,6]
[385899994,1758118241858,-1648.27470408,0.00023807,2]
[385899995,1758118241870,-480.0,0.00023812,3]
[385899996,1758118241880,-3072.12,0.00023812,3]
[385899997,1758118241891,-480.0,0.00023812,3]
[385899998,1758118241902,-480.0,0.00023812,3]
[385899999,1758118241913,-480.0,0.00023812,3]
[385900000,1758118241923,-429.43,0.0002383,3]
[385900001,1758118241934,-480.0,0.0002383,3]
[385900002,1758118241945,-480.0,0.0002383,3]
[385900003,1758118241955,-607.2,0.0002383,3]
[385900004,1758118241966,-480.0,0.00023831,3]
[385900005,1758118241976,-480.0,0.00023831,3]
[385900006,1758118241988,-480.0,0.00023831,3]
[385900007,1758118241998,-480.0,0.00023831,3]
[385900008,1758118242011,-480.0,0.00023831,3]
[385900009,1758118242022,-480.0,0.00023831,3]
[385900010,1758118242033,-480.0,0.00023831,3]
[385900011,1758118242045,-1237.16,0.00023831,3]
[385900012,1758118242057,-480.0,0.00023831,3]
[385900013,1758118242069,-480.0,0.00023831,3]
[385900014,1758118242082,-480.0,0.00023831,3]
[385900015,1758118242094,-499.16,0.00023831,3]
[385900016,1758118242106,-480.0,0.00023831,3]
[385900017,1758118242117,-482.04,0.00023831,3]
[385900018,1758118242130,-624.93,0.00023831,3]
[385900019,1758118242142,-480.0,0.00023831,3]
[385900020,1758118242152,-480.0,0.00023831,3]
[385900021,1758118242164,-480.0,0.00023831,3]
[385900022,1758118242173,-480.0,0.00023831,3]
[385900023,1758118242183,-480.0,0.00023831,3]
[385900024,1758118242192,-480.0,0.00023831,3]
[385900025,1758118242202,-480.0,0.00023831,3]
[385900026,1758118242212,-480.0,0.00023831,3]
[385900027,1758118242221,-480.0,0.00023831,3]
[385900028,1758118242230,-531.4,0.00023831,3]
[385900029,1758118242240,-480.0,0.00023831,3]
[385900030,1758118242249,-514.4,0.00023831,3]
[385900031,1758118242396,-287.12,0.00023831,3]
[385900032,1758118242409,-480.0,0.00023831,3]
[385900033,1758118242419,-480.0,0.00023831,3]
[385900034,1758118242428,-480.0,0.00023831,3]
[385900035,1758118242438,-480.0,0.00023831,3]
[385900036,1758118242447,-231.1073055,0.00023831,3]
[385900037,1758118242457,-480.0,0.00023831,3]
[385900038,1758118242467,-525.48,0.00023831,3]
[385900039,1758118242476,-480.0,0.00023831,3]
[385900040,1758118242485,-480.0,0.00023831,3]
[385900041,1758118242495,-480.0,0.00023831,3]
[385900042,1758118242504,-480.0,0.00023831,3]
[385900043,1758118242513,-480.0,0.00023831,3]
[385900044,1758118242523,-480.0,0.00023831,3]
[385900045,1758118242533,-480.0,0.00023831,3]
[385900046,1758118242543,-178.52,0.00023831,3]
[385900047,1758118242552,-480.0,0.00023831,3]
[385900048,1758118242562,-480.0,0.00023831,3]
[385900049,1758118242573,-480.0,0.00023831,3]
[385900050,1758118242582,-480.0,0.00023832,3]
[385900051,1758118242592,-480.0,0.00023832,3]
[385900052,1758118242601,-480.0,0.00023832,3]
[385900053,1758118242611,-480.0,0.00023832,3]
[385900054,1758118242620,-480.0,0.00023832,3]
[385900055,1758118242629,-480.0,0.00023832,3]
[385900056,1758118242639,-480.0,0.00023832,3]
[385900057,1758118242649,-480.0,0.00023832,3]
[385900058,1758118242659,-480.0,0.00023832,3]
[385900059,1758118242669,-480.0,0.00023832,3]
[385900060,1758118242678,-480.0,0.00023832,3]
[385900061,1758118242687,-480.0,0.00023832,3]
[385900062,1758118242697,-480.0,0.00023832,3]
[385900063,1758118242706,-435.08,0.00023832,3]
[385900064,1758118242716,-480.0,0.00023832,3]
[385900065,1758118242725,-480.0,0.00023832,3]
[385900066,1758118242734,-480.0,0.00023832,3]
[385900067,1758118242744,-661.67,0.00023832,3]
[385900068,1758118242753,-480.0,0.00023832,3]
[385900069,1758118242762,-1123.97,0.00023832,3]
[385900070,1758118242771,-480.0,0.00023832,3]
[385900071,1758118242781,-480.0,0.00023832,3]
[385900072,1758118242791,-480.0,0.00023832,3]
[385900073,1758118242800,-480.0,0.00023832,3]
[385900074,1758118242809,-480.0,0.00023832,3]
[385900075,1758118242819,-480.0,0.00023832,3]
[385900076,1758118242829,-480.0,0.00023832,3]
[385900077,1758118242838,-601.44,0.00023833,3]
[385900078,1758118242848,-480.0,0.00023833,3]
[385900079,1758118242858,-480.0,0.00023833,3]
[385900080,1758118242867,-480.0,0.00023833,3]
[385900081,1758118242877,-480.0,0.00023833,3]
[385900082,1758118242886,-480.0,0.00023833,3]
[385900083,1758118242895,-480.0,0.00023833,3]
[385900084,1758118242904,-480.0,0.00023833,3]
[385900085,1758118242913,-270.06101749,0.00023833,3]
[385900087,1758118242923,-480.0,0.00023833,3]
[385900088,1758118242934,-480.0,0.00023833,3]
[385900089,1758118242943,-592.71,0.00023833,3]
[385900090,1758118242953,-502.9907,0.00023833,3]
[385900091,1758118242962,-488.02918944,0.00023833,3]
[385900092,1758118242971,-480.0,0.00023833,3]
[385900093,1758118242981,-480.0,0.00023833,3]
[385900094,1758118242991,-480.0,0.00023833,3]
[385900095,1758118243000,-480.0,0.00023833,3]
[385900096,1758118243010,-480.0,0.00023833,3]
[385900097,1758118243019,-320.04507709,0.00023833,3]
[385900098,1758118243028,-192.7096624,0.00023833,3]
[385900099,1758118243038,-480.0,0.00023833,3]
[385900100,1758118243048,-500.0,0.00023833,3]
[385900101,1758118243057,-480.0,0.00023833,3]
[385900102,1758118243067,-480.0,0.00023833,3]
[385900103,1758118243077,-480.0,0.00023834,3]
[385900105,1758118243087,-566.45205468,0.00023834,3]
[385900107,1758118243098,-570.44,0.00023834,3]
[385900109,1758118243107,-1641.24,0.00023834,3]
[385900111,1758118243117,-180.72,0.00023834,3]
[385900112,1758118243126,-480.0,0.00023834,3]
[385900113,1758118243135,-480.0,0.00023834,3]
[385900114,1758118243145,-160.0,0.00023893,2]
[385900115,1758118243155,-2013.66,0.00024,2]
[385900116,1758118243164,-151.0,0.00024,6]
[385900117,1758118243177,-6670.57528072,0.00024006,2]
[385900119,1758118243186,-480.0,0.00024007,3]
[385900120,1758118243195,-480.0,0.00024007,3]
[385900121,1758118243205,-354.94,0.00024086,3]
[385900122,1758118243214,-3072.12,0.00024086,3]
[385900123,1758118243224,-480.0,0.00024086,3]
[385900124,1758118243233,-480.0,0.00024086,3]
[385900125,1758118243242,-480.0,0.00024086,3]
[385900126,1758118243251,-151.0,0.000241,10]
[385900128,1758118243261,-480.0,0.00024104,3]
[385900130,1758118243271,-480.0,0.00024104,3]
[385900132,1758118243280,-607.2,0.00024104,3]
[385900134,1758118243290,-346.84,0.00024105,3]
[385900136,1758118243299,-480.0,0.00024105,3]
[385900138,1758118243309,-480.0,0.00024105,3]
[385900140,1758118243319,-480.0,0.00024105,3]
[385900142,1758118243330,-480.0,0.00024105,3]
[385900144,1758118243340,-249.22,0.00024105,3]
[385900146,1758118243350,-1237.16,0.00024105,3]
[385900148,1758118243360,-480.0,0.00024105,3]
[385900150,1758118243369,-480.0,0.00024105,3]
[385900152,1758118243379,-480.0,0.00024105,3]
[385900154,1758118243388,-47.1821796,0.00024105,3]
[385900157,1758118243403,-434.8578204,0.00024105,3]
[385900159,1758118243412,-624.93,0.00024105,3]
[385900161,1758118243422,-480.0,0.00024105,3]
[385900163,1758118243431,-480.0,0.00024105,3]
[385900166,1758118243441,-480.0,0.00024105,3]
[385900168,1758118243450,-480.0,0.00024105,3]
[385900169,1758118243460,-480.0,0.00024105,3]
[385900172,1758118243470,-480.0,0.00024105,3]
[385900173,1758118243479,-480.0,0.00024105,3]
[385900175,1758118243489,-480.0,0.00024105,3]
[385900178,1758118243498,-480.0,0.00024105,3]
[385900179,1758118243508,-480.0,0.00024105,3]
[385900182,1758118243517,-480.0,0.00024105,3]
[385900184,1758118243527,-125.54576076,0.00024105,3]
[385900186,1758118243540,-354.45423924,0.00024105,3]
[385900188,1758118243549,-480.0,0.00024105,3]
[385900190,1758118243558,-349.9,0.00024105,3]
[385900192,1758118243569,-480.0,0.00024105,3]
[385900194,1758118243579,-558.86,0.00024105,3]
[385900196,1758118243589,-480.0,0.00024105,3]
[385900198,1758118243598,-480.0,0.00024105,3]
[385900200,1758118243608,-480.0,0.00024105,3]
[385900202,1758118243617,-480.0,0.00024105,3]
[385900204,1758118243627,-480.0,0.00024105,3]
[385900206,1758118243636,-538.36,0.00024105,3]
[385900208,1758118243646,-480.0,0.00024105,3]
[385900210,1758118243655,-480.0,0.00024105,3]
[385900212,1758118243665,-480.0,0.00024105,3]
[385900214,1758118243674,-480.0,0.00024106,3]
[385900216,1758118243683,-480.0,0.00024106,3]
[385900232,1758118243899,-480.0,0.00024106,3]
[385900234,1758118243908,-392.59,0.00024106,3]
[385900235,1758118243917,-563.95,0.00024106,3]
[385900236,1758118243927,-480.0,0.00024106,3]
[385900237,1758118243936,-480.0,0.00024106,3]
[385900238,1758118243945,-251.0,0.00024106,3]
[385900239,1758118243955,-480.0,0.00024106,3]
[385900240,1758118243965,-480.0,0.00024106,3]
[385900241,1758118243974,-480.0,0.00024106,3]
[385900242,1758118243983,-357.00890816,0.00024106,3]
[385900243,1758118243995,-247.52109184,0.00024106,3]
[385900244,1758118244004,-480.0,0.00024106,3]
[385900245,1758118244014,-480.0,0.00024106,3]
[385900246,1758118244024,-220.46,0.00024106,3]
[385900247,1758118244033,-661.67,0.00024106,3]
[385900248,1758118244043,-480.0,0.00024106,3]
[385900249,1758118244052,-1123.97,0.00024106,3]
[385900250,1758118244061,-342.33,0.00024106,3]
[385900251,1758118244071,-480.0,0.00024106,3]
[385900252,1758118244081,-539.02,0.00024106,3]
[385900253,1758118244091,-340.14,0.00024106,3]
[385900254,1758118244104,-326.48,0.00024106,3]
[385900255,1758118244113,-480.0,0.00024106,3]
[385900256,1758118244122,-199.02,0.00024106,3]
[385900257,1758118244132,-601.44,0.00024107,3]
[385900258,1758118244142,-480.0,0.00024107,3]
[385900259,1758118244152,-480.0,0.00024107,3]
[385900260,1758118244161,-480.0,0.00024107,3]
[385900261,1758118244171,-472.50669753,0.00024107,3]
[385900262,1758118244180,-480.0,0.00024107,3]
[385900263,1758118244190,-480.0,0.00024107,3]
[385900264,1758118244199,-480.0,0.00024107,3]
[385900265,1758118244208,-480.0,0.00024107,3]
[385900266,1758118244218,-480.0,0.00024107,3]
[385900267,1758118244228,-480.0,0.00024107,3]
[385900268,1758118244236,-480.0,0.00024107,3]
[385900269,1758118244244,-1641.24,0.00024108,3]
[385900270,1758118244253,-480.0,0.00024108,3]
[385900271,1758118244261,-502.06,0.00024108,3]
[385900272,1758118244269,-150.0,0.00024109,2]
[385900273,1758118244279,-1648.27470408,0.00024118,2]
[385900274,1758118244288,-1000.0,0.00024121,2]
[385900275,1758118244298,-333.65936491,0.00024152,2]
[385900276,1758118244308,-480.0,0.00024281,3]
[385900277,1758118244318,-173.16,0.00024281,3]
[385900278,1758118244328,-151.0,0.000243,6]
[385900279,1758118244337,-3072.12,0.0002436,3]
[385900280,1758118244346,-480.0,0.0002436,3]
[385900281,1758118244355,-480.0,0.0002436,3]
[385900282,1758118244365,-480.0,0.0002436,3]
[385900283,1758118244374,-346.54,0.00024378,3]
[385900284,1758118244384,-480.0,0.00024378,3]
[385900285,1758118244393,-607.2,0.00024378,3]
[385900286,1758118244403,-480.0,0.00024379,3]
[385900287,1758118244412,-480.0,0.00024379,3]
[385900288,1758118244422,-480.0,0.00024379,3]
[385900289,1758118244431,-480.0,0.00024379,3]
[385900290,1758118244441,-1237.16,0.00024379,3]
[385900291,1758118244450,-480.0,0.00024379,3]
[385900292,1758118244459,-480.0,0.00024379,3]
[385900293,1758118244469,-480.0,0.00024379,3]
[385900294,1758118244479,-482.04,0.00024379,3]
[385900295,1758118244488,-624.93,0.00024379,3]
[385900296,1758118244497,-480.0,0.00024379,3]
[385900297,1758118244507,-179.49,0.00024379,3]
[385900298,1758118244516,-230.46,0.00024379,3]
[385900299,1758118244526,-480.0,0.00024379,3]
[385900300,1758118244535,-480.0,0.00024379,3]
[385900301,1758118244544,-480.0,0.00024379,3]
[385900302,1758118244554,-234.45,0.00024379,3]
[385900303,1758118244563,-480.0,0.00024379,3]
[385900304,1758118244573,-292.52,0.00024379,3]
[385900305,1758118244583,-480.0,0.00024379,3]
[385900306,1758118244592,-480.0,0.00024379,3]
[385900307,1758118244601,-480.0,0.00024379,3]
[385900308,1758118244610,-480.0,0.00024379,3]
[385900309,1758118244620,-480.0,0.00024379,3]
[385900310,1758118244629,-480.0,0.00024379,3]
[385900311,1758118244638,-480.0,0.00024379,3]
[385900312,1758118244647,-480.0,0.00024379,3]
[385900313,1758118244656,-480.0,0.00024379,3]
[385900314,1758118244665,-480.0,0.00024379,3]